Workbook

Sheet Stückliste
A12: MN | B12: Nr. | C12: BN | D12: LN | E12: BT | F12: TF | G12: MT | H12: GW | I12: PR
A13: =DATA!G1 -> 1 | B13: =DATA!A1 -> 1797_10_AF_02_2 | C13: =DATA!B1 -> Düsenteil | D13: =IF(A13>=1,DATA!K1,0) -> 139.5 | E13: =IF(A13>=1,DATA!L1,0) -> 680 | F13: =IF(A13>=1,DATA!M1,0) -> 1.5 | G13: =DATA!F1 -> 1.4301 2J EF | H13: =IF(A13>=1,A13*D13*E13*F13*0.0079/1000,0) -> 1.124091 | I13: =PRODUCT(H13*5.2) -> 5.8452732
A14: =DATA!G2 -> 1 | B14: =DATA!A2 -> 1797_00_TR_03 | C14: =DATA!B2 -> Revision mit Auslass | D14: =IF(A14>=1,DATA!K2,0) -> 493.9 | E14: =IF(A14>=1,DATA!L2,0) -> 1470 | F14: =IF(A14>=1,DATA!M2,0) -> 1.5 | G14: =DATA!F2 -> 1.4301 2J EF | H14: =IF(A14>=1,A14*D14*E14*F14*0.0079/1000,0) -> 8.60349105 | I14: =PRODUCT(H14*5.2) -> 44.73815346
A15: =DATA!G3 -> 2 | B15: =DATA!A3 -> 1797_SD_00_01 | C15: =DATA!B3 -> Schalldäpfer | D15: =IF(A15>=1,DATA!K3,0) -> 1290 | E15: =IF(A15>=1,DATA!L3,0) -> 518 | F15: =IF(A15>=1,DATA!M3,0) -> 1.5 | G15: =DATA!F3 -> 1.4301 2J EF | H15: =IF(A15>=1,A15*D15*E15*F15*0.0079/1000,0) -> 15.836814 | I15: =PRODUCT(H15*5.2) -> 82.3514328
A16: =DATA!G4 -> 1 | B16: =DATA!A4 -> 1797_SD_00_02 | C16: =DATA!B4 -> Schalldäpfer | D16: =IF(A16>=1,DATA!K4,0) -> 1290 | E16: =IF(A16>=1,DATA!L4,0) -> 518 | F16: =IF(A16>=1,DATA!M4,0) -> 1.5 | G16: =DATA!F4 -> 1.4301 2J EF | H16: 7.918407 | I16: 41.1757164
A17: =DATA!G5 -> 1 | B17: =DATA!A5 -> 1797_20_PA_01_06 | C17: =DATA!B5 -> Außenblech oben | D17: =IF(A17>=1,DATA!K5,0) -> 1422.6 | E17: =IF(A17>=1,DATA!L5,0) -> 1456 | F17: =IF(A17>=1,DATA!M5,0) -> 1 | G17: =DATA!F5 -> 1.4301 2J EF | H17: 16.36331424 | I17: 85.08923405
A18: =DATA!G6 -> 1 | B18: =DATA!A6 -> 1797_20_PA_01_08 | C18: =DATA!B6 -> Innenblech oben | D18: =IF(A18>=1,DATA!K6,0) -> 1451 | E18: =IF(A18>=1,DATA!L6,0) -> 1401 | F18: =IF(A18>=1,DATA!M6,0) -> 1.5 | G18: =DATA!F6 -> 1.4301 2J EF | H18: 24.08928435 | I18: 125.2642786
A19: =DATA!G7 -> 1 | B19: =DATA!A7 -> 1797_00_GF01_01 | C19: =DATA!B7 -> Griffschutz | D19: =IF(A19>=1,DATA!K7,0) -> 1161 | E19: =IF(A19>=1,DATA!L7,0) -> 404 | F19: =IF(A19>=1,DATA!M7,0) -> 1.5 | G19: =DATA!F7 -> 1.4301 2J EF | H19: 5.5581714 | I19: 28.90249128
A20: =DATA!G8 -> 1 | B20: =DATA!A8 -> 1797_00_RW_07 | C20: =DATA!B8 -> Abluftblech | D20: =IF(A20>=1,DATA!K8,0) -> 1358 | E20: =IF(A20>=1,DATA!L8,0) -> 548 | F20: =IF(A20>=1,DATA!M8,0) -> 1.5 | G20: =DATA!F8 -> 1.4301 2J EF | H20: 8.8185804 | I20: 45.85661808
A21: =DATA!G9 -> 1 | B21: =DATA!A9 -> 1797_00_RW01_13 | C21: =DATA!B9 -> Kabelkanal | D21: =IF(A21>=1,DATA!K9,0) -> 2374.5 | E21: =IF(A21>=1,DATA!L9,0) -> 671 | F21: =IF(A21>=1,DATA!M9,0) -> 1.5 | G21: =DATA!F9 -> 1.4301 2J EF | H21: 18.88048057 | I21: 98.17849899
A22: =DATA!G10 -> 1 | B22: =DATA!A10 -> 1797_00_RW_05_01 | C22: =DATA!B10 -> Rückwandsegment mit Hutze | D22: =IF(A22>=1,DATA!K10,0) -> 1059 | E22: =IF(A22>=1,DATA!L10,0) -> 1366 | F22: =IF(A22>=1,DATA!M10,0) -> 1.5 | G22: =DATA!F10 -> 1.4301 2J EF | H22: 17.1421389 | I22: 89.13912228
A23: =DATA!G11 -> 1 | B23: =DATA!A11 -> 1797_00_RW_05_02 | C23: =DATA!B11 -> Schieber | D23: =IF(A23>=1,DATA!K11,0) -> 1234 | E23: =IF(A23>=1,DATA!L11,0) -> 121 | F23: =IF(A23>=1,DATA!M11,0) -> 1.5 | G23: =DATA!F11 -> 1.4301 2J EF | H23: 1.7693709 | I23: 9.20072868
A24: =DATA!G12 -> 1 | B24: =DATA!A12 -> 1797_00_RW_03_1 | C24: =DATA!B12 -> Revisionsblende | D24: =IF(A24>=1,DATA!K12,0) -> 643 | E24: =IF(A24>=1,DATA!L12,0) -> 748 | F24: =IF(A24>=1,DATA!M12,0) -> 1.5 | G24: =DATA!F12 -> 1.4301 2J EF | H24: 5.6994234 | I24: 29.63700168
A25: =DATA!G13 -> 1 | B25: =DATA!A13 -> 1797_00_RW_03 | C25: =DATA!B13 -> Filterblech Vorne | D25: =IF(A25>=1,DATA!K13,0) -> 701 | E25: =IF(A25>=1,DATA!L13,0) -> 1316 | F25: =IF(A25>=1,DATA!M13,0) -> 1.5 | G25: =DATA!F13 -> 1.4301 2J EF | H25: 10.9318146 | I25: 56.84543592
A26: =DATA!G14 -> 1 | B26: =DATA!A14 -> 1797_HB_04 | C26: =DATA!B14 -> Druckkammer Vorne | D26: =IF(A26>=1,DATA!K14,0) -> 1414 | E26: =IF(A26>=1,DATA!L14,0) -> 391.5 | F26: =IF(A26>=1,DATA!M14,0) -> 1.5 | G26: =DATA!F14 -> 1.4301 2J EF | H26: 6.55993485 | I26: 34.11166122
A27: =DATA!G15 -> 1 | B27: =DATA!A15 -> 1797_HB_01 | C27: =DATA!B15 -> Düsenblech | D27: =IF(A27>=1,DATA!K15,0) -> 1418 | E27: =IF(A27>=1,DATA!L15,0) -> 1284.6 | F27: =IF(A27>=1,DATA!M15,0) -> 1.5 | G27: =DATA!F15 -> 1.4301 2J EF | H27: 21.58551918 | I27: 112.2446997
A28: =DATA!G16 -> 1 | B28: =DATA!A16 -> 1797_00_EJ02_02 | C28: =DATA!B16 -> Tür-Ejektordüsenteil | D28: =IF(A28>=1,DATA!K16,0) -> 878.6 | E28: =IF(A28>=1,DATA!L16,0) -> 723 | F28: =IF(A28>=1,DATA!M16,0) -> 1.5 | G28: =DATA!F16 -> 1.4301 2J EF | H28: 7.52744943 | I28: 39.14273704
A29: =DATA!G17 -> 1 | B29: =DATA!A17 -> 1797_00_EJ02_01 | C29: =DATA!B17 -> Tür-Ejektoroberteil | D29: =IF(A29>=1,DATA!K17,0) -> 896.7 | E29: =IF(A29>=1,DATA!L17,0) -> 768 | F29: =IF(A29>=1,DATA!M17,0) -> 1.5 | G29: =DATA!F17 -> 1.4301 2J EF | H29: 8.16068736 | I29: 42.43557427
A30: =DATA!G18 -> 0 | B30: =DATA!A18 -> 0 | C30: =DATA!B18 -> 0 | D30: =IF(A30>=1,DATA!K18,0) -> 0 | E30: =IF(A30>=1,DATA!L18,0) -> 0 | F30: =IF(A30>=1,DATA!M18,0) -> 0 | G30: =DATA!F18 -> 0 | H30: 0 | I30: 0
A31: =DATA!G19 -> 0 | C31: =DATA!B19 -> 0 | D31: =IF(A31>=1,DATA!K19,0) -> 0 | E31: =IF(A31>=1,DATA!L19,0) -> 0 | F31: =IF(A31>=1,DATA!M19,0) -> 0 | G31: =DATA!F19 -> 0 | H31: 0 | I31: 0
A32: =DATA!G20 -> 0 | B32: =DATA!A20 -> 0 | C32: =DATA!B20 -> 0 | D32: =IF(A32>=1,DATA!K20,0) -> 0 | E32: =IF(A32>=1,DATA!L20,0) -> 0 | F32: =IF(A32>=1,DATA!M20,0) -> 0 | G32: =DATA!F20 -> 0 | H32: 0 | I32: 0
A33: =DATA!G21 -> 0 | B33: =DATA!A21 -> 0 | C33: =DATA!B21 -> 0 | D33: =IF(A33>=1,DATA!K21,0) -> 0 | E33: =IF(A33>=1,DATA!L21,0) -> 0 | F33: =IF(A33>=1,DATA!M21,0) -> 0 | G33: =DATA!F21 -> 0 | H33: 0 | I33: 0
A34: =DATA!G22 -> 0 | B34: =DATA!A22 -> 0 | C34: =DATA!B22 -> 0 | D34: =IF(A34>=1,DATA!K22,0) -> 0 | E34: =IF(A34>=1,DATA!L22,0) -> 0 | F34: =IF(A34>=1,DATA!M22,0) -> 0 | G34: =DATA!F22 -> 0 | H34: 0 | I34: 0
A35: =DATA!G23 -> 0 | B35: =DATA!A23 -> 0 | C35: =DATA!B23 -> 0 | D35: =IF(A35>=1,DATA!K23,0) -> 0 | E35: =IF(A35>=1,DATA!L23,0) -> 0 | F35: =IF(A35>=1,DATA!M23,0) -> 0 | G35: =DATA!F23 -> 0 | H35: 0 | I35: 0
A36: =DATA!G24 -> 0 | B36: =DATA!A24 -> 0 | C36: =DATA!B24 -> 0 | D36: =IF(A36>=1,DATA!K24,0) -> 0 | E36: =IF(A36>=1,DATA!L24,0) -> 0 | F36: =IF(A36>=1,DATA!M24,0) -> 0 | G36: =DATA!F24 -> 0 | H36: 0 | I36: 0
A37: =DATA!G25 -> 0 | B37: =DATA!A25 -> 0 | C37: =DATA!B25 -> 0 | D37: =IF(A37>=1,DATA!K25,0) -> 0 | E37: =IF(A37>=1,DATA!L25,0) -> 0 | F37: =IF(A37>=1,DATA!M25,0) -> 0 | G37: =DATA!F25 -> 0 | H37: 0 | I37: 0
A38: =DATA!G26 -> 0 | B38: =DATA!A26 -> 0 | C38: =DATA!B26 -> 0 | D38: =IF(A38>=1,DATA!K26,0) -> 0 | E38: =IF(A38>=1,DATA!L26,0) -> 0 | F38: =IF(A38>=1,DATA!M26,0) -> 0 | G38: =DATA!F26 -> 0 | H38: 0 | I38: 0
A39: =DATA!G27 -> 0 | B39: =DATA!A27 -> 0 | C39: =DATA!B27 -> 0 | D39: =IF(A39>=1,DATA!K27,0) -> 0 | E39: =IF(A39>=1,DATA!L27,0) -> 0 | F39: =IF(A39>=1,DATA!M27,0) -> 0 | G39: =DATA!F27 -> 0 | H39: 0 | I39: 0
A40: =DATA!G28 -> 0 | B40: =DATA!A28 -> 0 | C40: =DATA!B28 -> 0 | D40: =IF(A40>=1,DATA!K28,0) -> 0 | E40: =IF(A40>=1,DATA!L28,0) -> 0 | F40: =IF(A40>=1,DATA!M28,0) -> 0 | G40: =DATA!F28 -> 0 | H40: 0 | I40: 0
A41: =DATA!G29 -> 0 | B41: =DATA!A29 -> 0 | C41: =DATA!B29 -> 0 | D41: =IF(A41>=1,DATA!K29,0) -> 0 | E41: =IF(A41>=1,DATA!L29,0) -> 0 | F41: =IF(A41>=1,DATA!M29,0) -> 0 | G41: =DATA!F29 -> 0 | H41: 0 | I41: 0
A42: =DATA!G30 -> 0 | B42: =DATA!A30 -> 0 | C42: =DATA!B30 -> 0 | D42: =IF(A42>=1,DATA!K30,0) -> 0 | E42: =IF(A42>=1,DATA!L30,0) -> 0 | F42: =IF(A42>=1,DATA!M30,0) -> 0 | G42: =DATA!F30 -> 0 | H42: 0 | I42: 0
A43: =DATA!G31 -> 0 | B43: =DATA!A31 -> 0 | C43: =DATA!B31 -> 0 | D43: =IF(A43>=1,DATA!K31,0) -> 0 | E43: =IF(A43>=1,DATA!L31,0) -> 0 | F43: =IF(A43>=1,DATA!M31,0) -> 0 | G43: =DATA!F31 -> 0 | H43: 0 | I43: 0
A44: =DATA!G32 -> 0 | B44: =DATA!A32 -> 0 | C44: =DATA!B32 -> 0 | D44: =IF(A44>=1,DATA!K32,0) -> 0 | E44: =IF(A44>=1,DATA!L32,0) -> 0 | F44: =IF(A44>=1,DATA!M32,0) -> 0 | G44: =DATA!F32 -> 0 | H44: 0 | I44: 0
A45: =DATA!G33 -> 0 | B45: =DATA!A33 -> 0 | C45: =DATA!B33 -> 0 | D45: =IF(A45>=1,DATA!K33,0) -> 0 | E45: =IF(A45>=1,DATA!L33,0) -> 0 | F45: =IF(A45>=1,DATA!M33,0) -> 0 | G45: =DATA!F33 -> 0 | H45: 0 | I45: 0
A46: =DATA!G34 -> 0 | B46: =DATA!A34 -> 0 | C46: =DATA!B34 -> 0 | D46: =IF(A46>=1,DATA!K34,0) -> 0 | E46: =IF(A46>=1,DATA!L34,0) -> 0 | F46: =IF(A46>=1,DATA!M34,0) -> 0 | G46: =DATA!F34 -> 0 | H46: 0 | I46: 0
A47: =DATA!G35 -> 0 | B47: =DATA!A35 -> 0 | C47: =DATA!B35 -> 0 | D47: =IF(A47>=1,DATA!K35,0) -> 0 | E47: =IF(A47>=1,DATA!L35,0) -> 0 | F47: =IF(A47>=1,DATA!M35,0) -> 0 | G47: =DATA!F35 -> 0 | H47: 0 | I47: 0
A48: =DATA!G36 -> 0 | B48: =DATA!A36 -> 0 | C48: =DATA!B36 -> 0 | D48: =IF(A48>=1,DATA!K36,0) -> 0 | E48: =IF(A48>=1,DATA!L36,0) -> 0 | F48: =IF(A48>=1,DATA!M36,0) -> 0 | G48: =DATA!F36 -> 0 | H48: 0 | I48: 0
A49: =DATA!G37 -> 0 | B49: =DATA!A37 -> 0 | C49: =DATA!B37 -> 0 | D49: =IF(A49>=1,DATA!K37,0) -> 0 | E49: =IF(A49>=1,DATA!L37,0) -> 0 | F49: =IF(A49>=1,DATA!M37,0) -> 0 | G49: =DATA!F37 -> 0 | H49: 0 | I49: 0
A50: =DATA!G38 -> 0 | B50: =DATA!A38 -> 0 | C50: =DATA!B38 -> 0 | D50: =IF(A50>=1,DATA!K38,0) -> 0 | E50: =IF(A50>=1,DATA!L38,0) -> 0 | F50: =IF(A50>=1,DATA!M38,0) -> 0 | G50: =DATA!F38 -> 0 | H50: 0 | I50: 0
A51: =DATA!G39 -> 0 | B51: =DATA!A39 -> 0 | C51: =DATA!B39 -> 0 | D51: =IF(A51>=1,DATA!K39,0) -> 0 | E51: =IF(A51>=1,DATA!L39,0) -> 0 | F51: =IF(A51>=1,DATA!M39,0) -> 0 | G51: =DATA!F39 -> 0 | H51: 0 | I51: 0
A52: =DATA!G40 -> 0 | B52: =DATA!A40 -> 0 | C52: =DATA!B40 -> 0 | D52: =IF(A52>=1,DATA!K40,0) -> 0 | E52: =IF(A52>=1,DATA!L40,0) -> 0 | F52: =IF(A52>=1,DATA!M40,0) -> 0 | G52: =DATA!F40 -> 0 | H52: 0 | I52: 0
A53: =DATA!G41 -> 0 | B53: =DATA!A41 -> 0 | C53: =DATA!B41 -> 0 | D53: =IF(A53>=1,DATA!K41,0) -> 0 | E53: =IF(A53>=1,DATA!L41,0) -> 0 | F53: =IF(A53>=1,DATA!M41,0) -> 0 | G53: =DATA!F41 -> 0 | H53: 0 | I53: 0
A54: =DATA!G42 -> 0 | B54: =DATA!A42 -> 0 | C54: =DATA!B42 -> 0 | D54: =IF(A54>=1,DATA!K42,0) -> 0 | E54: =IF(A54>=1,DATA!L42,0) -> 0 | F54: =IF(A54>=1,DATA!M42,0) -> 0 | G54: =DATA!F42 -> 0 | H54: 0 | I54: 0
A55: =DATA!G43 -> 0 | B55: =DATA!A43 -> 0 | C55: =DATA!B43 -> 0 | D55: =IF(A55>=1,DATA!K43,0) -> 0 | E55: =IF(A55>=1,DATA!L43,0) -> 0 | F55: =IF(A55>=1,DATA!M43,0) -> 0 | G55: =DATA!F43 -> 0 | H55: 0 | I55: 0
A56: =DATA!G44 -> 0 | B56: =DATA!A44 -> 0 | C56: =DATA!B44 -> 0 | D56: =IF(A56>=1,DATA!K44,0) -> 0 | E56: =IF(A56>=1,DATA!L44,0) -> 0 | F56: =IF(A56>=1,DATA!M44,0) -> 0 | G56: =DATA!F44 -> 0 | H56: 0 | I56: 0
A57: =DATA!G45 -> 0 | B57: =DATA!A45 -> 0 | C57: =DATA!B45 -> 0 | D57: =IF(A57>=1,DATA!K45,0) -> 0 | E57: =IF(A57>=1,DATA!L45,0) -> 0 | F57: =IF(A57>=1,DATA!M45,0) -> 0 | G57: =DATA!F45 -> 0 | H57: 0 | I57: 0
A58: =DATA!G46 -> 0 | B58: =DATA!A46 -> 0 | C58: =DATA!B46 -> 0 | D58: =IF(A58>=1,DATA!K46,0) -> 0 | E58: =IF(A58>=1,DATA!L46,0) -> 0 | F58: =IF(A58>=1,DATA!M46,0) -> 0 | G58: =DATA!F46 -> 0 | H58: 0 | I58: 0
A59: =DATA!G47 -> 0 | B59: =DATA!A47 -> 0 | C59: =DATA!B47 -> 0 | D59: =IF(A59>=1,DATA!K47,0) -> 0 | E59: =IF(A59>=1,DATA!L47,0) -> 0 | F59: =IF(A59>=1,DATA!M47,0) -> 0 | G59: =DATA!F47 -> 0 | H59: 0 | I59: 0
A60: =DATA!G48 -> 0 | B60: =DATA!A48 -> 0 | C60: =DATA!B48 -> 0 | D60: =IF(A60>=1,DATA!K48,0) -> 0 | E60: =IF(A60>=1,DATA!L48,0) -> 0 | F60: =IF(A60>=1,DATA!M48,0) -> 0 | G60: =DATA!F48 -> 0 | H60: 0 | I60: 0
A61: =DATA!G49 -> 0 | B61: =DATA!A49 -> 0 | C61: =DATA!B49 -> 0 | D61: =IF(A61>=1,DATA!K49,0) -> 0 | E61: =IF(A61>=1,DATA!L49,0) -> 0 | F61: =IF(A61>=1,DATA!M49,0) -> 0 | G61: =DATA!F49 -> 0 | H61: 0 | I61: 0
A62: =DATA!G50 -> 0 | B62: =DATA!A50 -> 0 | C62: =DATA!B50 -> 0 | D62: =IF(A62>=1,DATA!K50,0) -> 0 | E62: =IF(A62>=1,DATA!L50,0) -> 0 | F62: =IF(A62>=1,DATA!M50,0) -> 0 | G62: =DATA!F50 -> 0 | H62: 0 | I62: 0
A63: =DATA!G51 -> 0 | B63: =DATA!A51 -> 0 | C63: =DATA!B51 -> 0 | D63: =IF(A63>=1,DATA!K51,0) -> 0 | E63: =IF(A63>=1,DATA!L51,0) -> 0 | F63: =IF(A63>=1,DATA!M51,0) -> 0 | G63: =DATA!F51 -> 0 | H63: 0 | I63: 0
A64: =DATA!G52 -> 0 | B64: =DATA!A52 -> 0 | C64: =DATA!B52 -> 0 | D64: =IF(A64>=1,DATA!K52,0) -> 0 | E64: =IF(A64>=1,DATA!L52,0) -> 0 | F64: =IF(A64>=1,DATA!M52,0) -> 0 | G64: =DATA!F52 -> 0 | H64: 0 | I64: 0
A65: =DATA!G53 -> 0 | B65: =DATA!A53 -> 0 | C65: =DATA!B53 -> 0 | D65: =IF(A65>=1,DATA!K53,0) -> 0 | E65: =IF(A65>=1,DATA!L53,0) -> 0 | F65: =IF(A65>=1,DATA!M53,0) -> 0 | G65: =DATA!F53 -> 0 | H65: 0 | I65: 0
A66: =DATA!G54 -> 0 | B66: =DATA!A54 -> 0 | C66: =DATA!B54 -> 0 | D66: =IF(A66>=1,DATA!K54,0) -> 0 | E66: =IF(A66>=1,DATA!L54,0) -> 0 | F66: =IF(A66>=1,DATA!M54,0) -> 0 | G66: =DATA!F54 -> 0 | H66: 0 | I66: 0
A67: =DATA!G55 -> 0 | B67: =DATA!A55 -> 0 | C67: =DATA!B55 -> 0 | D67: =IF(A67>=1,DATA!K55,0) -> 0 | E67: =IF(A67>=1,DATA!L55,0) -> 0 | F67: =IF(A67>=1,DATA!M55,0) -> 0 | G67: =DATA!F55 -> 0 | H67: 0 | I67: 0
A68: =DATA!G56 -> 0 | B68: =DATA!A56 -> 0 | C68: =DATA!B56 -> 0 | D68: =IF(A68>=1,DATA!K56,0) -> 0 | E68: =IF(A68>=1,DATA!L56,0) -> 0 | F68: =IF(A68>=1,DATA!M56,0) -> 0 | G68: =DATA!F56 -> 0 | H68: 0 | I68: 0
A69: =DATA!G57 -> 0 | B69: =DATA!A57 -> 0 | C69: =DATA!B57 -> 0 | D69: =IF(A69>=1,DATA!K57,0) -> 0 | E69: =IF(A69>=1,DATA!L57,0) -> 0 | F69: =IF(A69>=1,DATA!M57,0) -> 0 | G69: =DATA!F57 -> 0 | H69: 0 | I69: 0
A70: =DATA!G58 -> 0 | B70: =DATA!A58 -> 0 | C70: =DATA!B58 -> 0 | D70: =IF(A70>=1,DATA!K58,0) -> 0 | E70: =IF(A70>=1,DATA!L58,0) -> 0 | F70: =IF(A70>=1,DATA!M58,0) -> 0 | G70: =DATA!F58 -> 0 | H70: 0 | I70: 0
A71: =DATA!G59 -> 0 | B71: =DATA!A59 -> 0 | C71: =DATA!B59 -> 0 | D71: =IF(A71>=1,DATA!K59,0) -> 0 | E71: =IF(A71>=1,DATA!L59,0) -> 0 | F71: =IF(A71>=1,DATA!M59,0) -> 0 | G71: =DATA!F59 -> 0 | H71: 0 | I71: 0
A72: =DATA!G60 -> 0 | B72: =DATA!A60 -> 0 | C72: =DATA!B60 -> 0 | D72: =IF(A72>=1,DATA!K60,0) -> 0 | E72: =IF(A72>=1,DATA!L60,0) -> 0 | F72: =IF(A72>=1,DATA!M60,0) -> 0 | G72: =DATA!F60 -> 0 | H72: 0 | I72: 0
A73: =DATA!G61 -> 0 | B73: =DATA!A61 -> 0 | C73: =DATA!B61 -> 0 | D73: =IF(A73>=1,DATA!K61,0) -> 0 | E73: =IF(A73>=1,DATA!L61,0) -> 0 | F73: =IF(A73>=1,DATA!M61,0) -> 0 | G73: =DATA!F61 -> 0 | H73: 0 | I73: 0
A74: =DATA!G62 -> 0 | B74: =DATA!A62 -> 0 | C74: =DATA!B62 -> 0 | D74: =IF(A74>=1,DATA!K62,0) -> 0 | E74: =IF(A74>=1,DATA!L62,0) -> 0 | F74: =IF(A74>=1,DATA!M62,0) -> 0 | G74: =DATA!F62 -> 0 | H74: 0 | I74: 0
A75: =DATA!G63 -> 0 | B75: =DATA!A63 -> 0 | C75: =DATA!B63 -> 0 | D75: =IF(A75>=1,DATA!K63,0) -> 0 | E75: =IF(A75>=1,DATA!L63,0) -> 0 | F75: =IF(A75>=1,DATA!M63,0) -> 0 | G75: =DATA!F63 -> 0 | H75: 0 | I75: 0
A76: =DATA!G64 -> 0 | B76: =DATA!A64 -> 0 | C76: =DATA!B64 -> 0 | D76: =IF(A76>=1,DATA!K64,0) -> 0 | E76: =IF(A76>=1,DATA!L64,0) -> 0 | F76: =IF(A76>=1,DATA!M64,0) -> 0 | G76: =DATA!F64 -> 0 | H76: 0 | I76: 0
A77: =DATA!G65 -> 0 | B77: =DATA!A65 -> 0 | C77: =DATA!B65 -> 0 | D77: =IF(A77>=1,DATA!K65,0) -> 0 | E77: =IF(A77>=1,DATA!L65,0) -> 0 | F77: =IF(A77>=1,DATA!M65,0) -> 0 | G77: =DATA!F65 -> 0 | H77: 0 | I77: 0
A78: =DATA!G66 -> 0 | B78: =DATA!A66 -> 0 | C78: =DATA!B66 -> 0 | D78: =IF(A78>=1,DATA!K66,0) -> 0 | E78: =IF(A78>=1,DATA!L66,0) -> 0 | F78: =IF(A78>=1,DATA!M66,0) -> 0 | G78: =DATA!F66 -> 0 | H78: 0 | I78: 0
A79: =DATA!G67 -> 0 | B79: =DATA!A67 -> 0 | C79: =DATA!B67 -> 0 | D79: =IF(A79>=1,DATA!K67,0) -> 0 | E79: =IF(A79>=1,DATA!L67,0) -> 0 | F79: =IF(A79>=1,DATA!M67,0) -> 0 | G79: =DATA!F67 -> 0 | H79: =IF(A79>=1,A79*D79*E79*F79*0.0079/1000,0) -> 0 | I79: =PRODUCT(H79*5.2) -> 0
A80: =DATA!G68 -> 0 | B80: =DATA!A68 -> 0 | C80: =DATA!B68 -> 0 | D80: =IF(A80>=1,DATA!K68,0) -> 0 | E80: =IF(A80>=1,DATA!L68,0) -> 0 | F80: =IF(A80>=1,DATA!M68,0) -> 0 | G80: =DATA!F68 -> 0 | H80: 0 | I80: 0
A81: =DATA!G69 -> 0 | B81: =DATA!A69 -> 0 | C81: =DATA!B69 -> 0 | D81: =IF(A81>=1,DATA!K69,0) -> 0 | E81: =IF(A81>=1,DATA!L69,0) -> 0 | F81: =IF(A81>=1,DATA!M69,0) -> 0 | G81: =DATA!F69 -> 0 | H81: 0 | I81: 0
A82: =DATA!G70 -> 0 | B82: =DATA!A70 -> 0 | C82: =DATA!B70 -> 0 | D82: =IF(A82>=1,DATA!K70,0) -> 0 | E82: =IF(A82>=1,DATA!L70,0) -> 0 | F82: =IF(A82>=1,DATA!M70,0) -> 0 | G82: =DATA!F70 -> 0 | H82: 0 | I82: 0
A83: =DATA!G71 -> 0 | B83: =DATA!A71 -> 0 | C83: =DATA!B71 -> 0 | D83: =IF(A83>=1,DATA!K71,0) -> 0 | E83: =IF(A83>=1,DATA!L71,0) -> 0 | F83: =IF(A83>=1,DATA!M71,0) -> 0 | G83: =DATA!F71 -> 0 | H83: 0 | I83: 0
A84: =DATA!G72 -> 0 | B84: =DATA!A72 -> 0 | C84: =DATA!B72 -> 0 | D84: =IF(A84>=1,DATA!K72,0) -> 0 | E84: =IF(A84>=1,DATA!L72,0) -> 0 | F84: =IF(A84>=1,DATA!M72,0) -> 0 | G84: =DATA!F72 -> 0 | H84: 0 | I84: 0
A85: =DATA!G73 -> 0 | B85: =DATA!A73 -> 0 | C85: =DATA!B73 -> 0 | D85: =IF(A85>=1,DATA!K73,0) -> 0 | E85: =IF(A85>=1,DATA!L73,0) -> 0 | F85: =IF(A85>=1,DATA!M73,0) -> 0 | G85: =DATA!F73 -> 0 | H85: 0 | I85: 0
A86: =DATA!G74 -> 0 | B86: =DATA!A74 -> 0 | C86: =DATA!B74 -> 0 | D86: =IF(A86>=1,DATA!K74,0) -> 0 | E86: =IF(A86>=1,DATA!L74,0) -> 0 | F86: =IF(A86>=1,DATA!M74,0) -> 0 | G86: =DATA!F74 -> 0 | H86: 0 | I86: 0
A87: =DATA!G75 -> 0 | B87: =DATA!A75 -> 0 | C87: =DATA!B75 -> 0 | D87: =IF(A87>=1,DATA!K75,0) -> 0 | E87: =IF(A87>=1,DATA!L75,0) -> 0 | F87: =IF(A87>=1,DATA!M75,0) -> 0 | G87: =DATA!F75 -> 0 | H87: 0 | I87: 0
A88: =DATA!G76 -> 0 | B88: =DATA!A76 -> 0 | C88: =DATA!B76 -> 0 | D88: =IF(A88>=1,DATA!K76,0) -> 0 | E88: =IF(A88>=1,DATA!L76,0) -> 0 | F88: =IF(A88>=1,DATA!M76,0) -> 0 | G88: =DATA!F76 -> 0 | H88: 0 | I88: 0
A89: =DATA!G77 -> 0 | B89: =DATA!A77 -> 0 | C89: =DATA!B77 -> 0 | D89: =IF(A89>=1,DATA!K77,0) -> 0 | E89: =IF(A89>=1,DATA!L77,0) -> 0 | F89: =IF(A89>=1,DATA!M77,0) -> 0 | G89: =DATA!F77 -> 0 | H89: 0 | I89: 0
A90: =DATA!G78 -> 0 | B90: =DATA!A78 -> 0 | C90: =DATA!B78 -> 0 | D90: =IF(A90>=1,DATA!K78,0) -> 0 | E90: =IF(A90>=1,DATA!L78,0) -> 0 | F90: =IF(A90>=1,DATA!M78,0) -> 0 | G90: =DATA!F78 -> 0 | H90: 0 | I90: 0
A91: =DATA!G79 -> 0 | B91: =DATA!A79 -> 0 | C91: =DATA!B79 -> 0 | D91: =IF(A91>=1,DATA!K79,0) -> 0 | E91: =IF(A91>=1,DATA!L79,0) -> 0 | F91: =IF(A91>=1,DATA!M79,0) -> 0 | G91: =DATA!F79 -> 0 | H91: 0 | I91: 0
A92: =DATA!G80 -> 0 | B92: =DATA!A80 -> 0 | C92: =DATA!B80 -> 0 | D92: =IF(A92>=1,DATA!K80,0) -> 0 | E92: =IF(A92>=1,DATA!L80,0) -> 0 | F92: =IF(A92>=1,DATA!M80,0) -> 0 | G92: =DATA!F80 -> 0 | H92: 0 | I92: 0
A93: =DATA!G81 -> 0 | B93: =DATA!A81 -> 0 | C93: =DATA!B81 -> 0 | D93: =IF(A93>=1,DATA!K81,0) -> 0 | E93: =IF(A93>=1,DATA!L81,0) -> 0 | F93: =IF(A93>=1,DATA!M81,0) -> 0 | G93: =DATA!F81 -> 0 | H93: 0 | I93: 0
A94: =DATA!G82 -> 0 | B94: =DATA!A82 -> 0 | C94: =DATA!B82 -> 0 | D94: =IF(A94>=1,DATA!K82,0) -> 0 | E94: =IF(A94>=1,DATA!L82,0) -> 0 | F94: =IF(A94>=1,DATA!M82,0) -> 0 | G94: =DATA!F82 -> 0 | H94: 0 | I94: 0
A95: =DATA!G83 -> 0 | B95: =DATA!A83 -> 0 | C95: =DATA!B83 -> 0 | D95: =IF(A95>=1,DATA!K83,0) -> 0 | E95: =IF(A95>=1,DATA!L83,0) -> 0 | F95: =IF(A95>=1,DATA!M83,0) -> 0 | G95: =DATA!F83 -> 0 | H95: 0 | I95: 0
A96: =DATA!G84 -> 0 | B96: =DATA!A84 -> 0 | C96: =DATA!B84 -> 0 | D96: =IF(A96>=1,DATA!K84,0) -> 0 | E96: =IF(A96>=1,DATA!L84,0) -> 0 | F96: =IF(A96>=1,DATA!M84,0) -> 0 | G96: =DATA!F84 -> 0 | H96: 0 | I96: 0
A97: =DATA!G85 -> 0 | B97: =DATA!A85 -> 0 | C97: =DATA!B85 -> 0 | D97: =IF(A97>=1,DATA!K85,0) -> 0 | E97: =IF(A97>=1,DATA!L85,0) -> 0 | F97: =IF(A97>=1,DATA!M85,0) -> 0 | G97: =DATA!F85 -> 0 | H97: 0 | I97: 0
A98: =DATA!G86 -> 0 | B98: =DATA!A86 -> 0 | C98: =DATA!B86 -> 0 | D98: =IF(A98>=1,DATA!K86,0) -> 0 | E98: =IF(A98>=1,DATA!L86,0) -> 0 | F98: =IF(A98>=1,DATA!M86,0) -> 0 | G98: =DATA!F86 -> 0 | H98: 0 | I98: 0
A99: =DATA!G87 -> 0 | B99: =DATA!A87 -> 0 | C99: =DATA!B87 -> 0 | D99: =IF(A99>=1,DATA!K87,0) -> 0 | E99: =IF(A99>=1,DATA!L87,0) -> 0 | F99: =IF(A99>=1,DATA!M87,0) -> 0 | G99: =DATA!F87 -> 0 | H99: 0 | I99: 0
A100: =DATA!G88 -> 0 | B100: =DATA!A88 -> 0 | C100: =DATA!B88 -> 0 | D100: =IF(A100>=1,DATA!K88,0) -> 0 | E100: =IF(A100>=1,DATA!L88,0) -> 0 | F100: =IF(A100>=1,DATA!M88,0) -> 0 | G100: =DATA!F88 -> 0 | H100: 0 | I100: 0
A101: =DATA!G89 -> 0 | B101: =DATA!A89 -> 0 | C101: =DATA!B89 -> 0 | D101: =IF(A101>=1,DATA!K89,0) -> 0 | E101: =IF(A101>=1,DATA!L89,0) -> 0 | F101: =IF(A101>=1,DATA!M89,0) -> 0 | G101: =DATA!F89 -> 0 | H101: 0 | I101: 0
A102: =DATA!G90 -> 0 | B102: =DATA!A90 -> 0 | C102: =DATA!B90 -> 0 | D102: =IF(A102>=1,DATA!K90,0) -> 0 | E102: =IF(A102>=1,DATA!L90,0) -> 0 | F102: =IF(A102>=1,DATA!M90,0) -> 0 | G102: =DATA!F90 -> 0 | H102: 0 | I102: 0
A103: =DATA!G91 -> 0 | B103: =DATA!A91 -> 0 | C103: =DATA!B91 -> 0 | D103: =IF(A103>=1,DATA!K91,0) -> 0 | E103: =IF(A103>=1,DATA!L91,0) -> 0 | F103: =IF(A103>=1,DATA!M91,0) -> 0 | G103: =DATA!F91 -> 0 | H103: 0 | I103: 0
A104: =DATA!G92 -> 0 | B104: =DATA!A92 -> 0 | C104: =DATA!B92 -> 0 | D104: =IF(A104>=1,DATA!K92,0) -> 0 | E104: =IF(A104>=1,DATA!L92,0) -> 0 | F104: =IF(A104>=1,DATA!M92,0) -> 0 | G104: =DATA!F92 -> 0 | H104: 0 | I104: 0
A105: =DATA!G93 -> 0 | B105: =DATA!A93 -> 0 | C105: =DATA!B93 -> 0 | D105: =IF(A105>=1,DATA!K93,0) -> 0 | E105: =IF(A105>=1,DATA!L93,0) -> 0 | F105: =IF(A105>=1,DATA!M93,0) -> 0 | G105: =DATA!F93 -> 0 | H105: 0 | I105: 0
A106: =DATA!G94 -> 0 | B106: =DATA!A94 -> 0 | C106: =DATA!B94 -> 0 | D106: =IF(A106>=1,DATA!K94,0) -> 0 | E106: =IF(A106>=1,DATA!L94,0) -> 0 | F106: =IF(A106>=1,DATA!M94,0) -> 0 | G106: =DATA!F94 -> 0 | H106: 0 | I106: 0
A107: =DATA!G95 -> 0 | B107: =DATA!A95 -> 0 | C107: =DATA!B95 -> 0 | D107: =IF(A107>=1,DATA!K95,0) -> 0 | E107: =IF(A107>=1,DATA!L95,0) -> 0 | F107: =IF(A107>=1,DATA!M95,0) -> 0 | G107: =DATA!F95 -> 0 | H107: 0 | I107: 0
A108: =DATA!G96 -> 0 | B108: =DATA!A96 -> 0 | C108: =DATA!B96 -> 0 | D108: =IF(A108>=1,DATA!K96,0) -> 0 | E108: =IF(A108>=1,DATA!L96,0) -> 0 | F108: =IF(A108>=1,DATA!M96,0) -> 0 | G108: =DATA!F96 -> 0 | H108: 0 | I108: 0
A109: =DATA!G97 -> 0 | B109: =DATA!A97 -> 0 | C109: =DATA!B97 -> 0 | D109: =IF(A109>=1,DATA!K97,0) -> 0 | E109: =IF(A109>=1,DATA!L97,0) -> 0 | F109: =IF(A109>=1,DATA!M97,0) -> 0 | G109: =DATA!F97 -> 0 | H109: 0 | I109: 0
A110: =DATA!G98 -> 0 | B110: =DATA!A98 -> 0 | C110: =DATA!B98 -> 0 | D110: =IF(A110>=1,DATA!K98,0) -> 0 | E110: =IF(A110>=1,DATA!L98,0) -> 0 | F110: =IF(A110>=1,DATA!M98,0) -> 0 | G110: =DATA!F98 -> 0 | H110: 0 | I110: 0
A111: =DATA!G99 -> 0 | B111: =DATA!A99 -> 0 | C111: =DATA!B99 -> 0 | D111: =IF(A111>=1,DATA!K99,0) -> 0 | E111: =IF(A111>=1,DATA!L99,0) -> 0 | F111: =IF(A111>=1,DATA!M99,0) -> 0 | G111: =DATA!F99 -> 0 | H111: 0 | I111: 0
A112: =DATA!G100 -> 0 | B112: =DATA!A100 -> 0 | C112: =DATA!B100 -> 0 | D112: =IF(A112>=1,DATA!K100,0) -> 0 | E112: =IF(A112>=1,DATA!L100,0) -> 0 | F112: =IF(A112>=1,DATA!M100,0) -> 0 | G112: =DATA!F100 -> 0 | H112: 0 | I112: 0
A113: =DATA!G101 -> 0 | B113: =DATA!A101 -> 0 | C113: =DATA!B101 -> 0 | D113: =IF(A113>=1,DATA!K101,0) -> 0 | E113: =IF(A113>=1,DATA!L101,0) -> 0 | F113: =IF(A113>=1,DATA!M101,0) -> 0 | G113: =DATA!F101 -> 0 | H113: 0 | I113: 0
A114: =DATA!G102 -> 0 | B114: =DATA!A102 -> 0 | C114: =DATA!B102 -> 0 | D114: =IF(A114>=1,DATA!K102,0) -> 0 | E114: =IF(A114>=1,DATA!L102,0) -> 0 | F114: =IF(A114>=1,DATA!M102,0) -> 0 | G114: =DATA!F102 -> 0 | H114: 0 | I114: 0
A115: =DATA!G103 -> 0 | B115: =DATA!A103 -> 0 | C115: =DATA!B103 -> 0 | D115: =IF(A115>=1,DATA!K103,0) -> 0 | E115: =IF(A115>=1,DATA!L103,0) -> 0 | F115: =IF(A115>=1,DATA!M103,0) -> 0 | G115: =DATA!F103 -> 0 | H115: 0 | I115: 0
A116: =DATA!G104 -> 0 | B116: =DATA!A104 -> 0 | C116: =DATA!B104 -> 0 | D116: =IF(A116>=1,DATA!K104,0) -> 0 | E116: =IF(A116>=1,DATA!L104,0) -> 0 | F116: =IF(A116>=1,DATA!M104,0) -> 0 | G116: =DATA!F104 -> 0 | H116: 0 | I116: 0
A117: =DATA!G105 -> 0 | B117: =DATA!A105 -> 0 | C117: =DATA!B105 -> 0 | D117: =IF(A117>=1,DATA!K105,0) -> 0 | E117: =IF(A117>=1,DATA!L105,0) -> 0 | F117: =IF(A117>=1,DATA!M105,0) -> 0 | G117: =DATA!F105 -> 0 | H117: 0 | I117: 0
A118: =DATA!G106 -> 0 | B118: =DATA!A106 -> 0 | C118: =DATA!B106 -> 0 | D118: =IF(A118>=1,DATA!K106,0) -> 0 | E118: =IF(A118>=1,DATA!L106,0) -> 0 | F118: =IF(A118>=1,DATA!M106,0) -> 0 | G118: =DATA!F106 -> 0 | H118: 0 | I118: 0
A119: =DATA!G107 -> 0 | B119: =DATA!A107 -> 0 | C119: =DATA!B107 -> 0 | D119: =IF(A119>=1,DATA!K107,0) -> 0 | E119: =IF(A119>=1,DATA!L107,0) -> 0 | F119: =IF(A119>=1,DATA!M107,0) -> 0 | G119: =DATA!F107 -> 0 | H119: 0 | I119: 0
A120: =DATA!G108 -> 0 | B120: =DATA!A108 -> 0 | C120: =DATA!B108 -> 0 | D120: =IF(A120>=1,DATA!K108,0) -> 0 | E120: =IF(A120>=1,DATA!L108,0) -> 0 | F120: =IF(A120>=1,DATA!M108,0) -> 0 | G120: =DATA!F108 -> 0 | H120: 0 | I120: 0
A121: =DATA!G109 -> 0 | B121: =DATA!A109 -> 0 | C121: =DATA!B109 -> 0 | D121: =IF(A121>=1,DATA!K109,0) -> 0 | E121: =IF(A121>=1,DATA!L109,0) -> 0 | F121: =IF(A121>=1,DATA!M109,0) -> 0 | G121: =DATA!F109 -> 0 | H121: 0 | I121: 0
A122: =DATA!G110 -> 0 | B122: =DATA!A110 -> 0 | C122: =DATA!B110 -> 0 | D122: =IF(A122>=1,DATA!K110,0) -> 0 | E122: =IF(A122>=1,DATA!L110,0) -> 0 | F122: =IF(A122>=1,DATA!M110,0) -> 0 | G122: =DATA!F110 -> 0 | H122: 0 | I122: 0
A123: =DATA!G111 -> 0 | B123: =DATA!A111 -> 0 | C123: =DATA!B111 -> 0 | D123: =IF(A123>=1,DATA!K111,0) -> 0 | E123: =IF(A123>=1,DATA!L111,0) -> 0 | F123: =IF(A123>=1,DATA!M111,0) -> 0 | G123: =DATA!F111 -> 0 | H123: 0 | I123: 0
A124: =DATA!G112 -> 0 | B124: =DATA!A112 -> 0 | C124: =DATA!B112 -> 0 | D124: =IF(A124>=1,DATA!K112,0) -> 0 | E124: =IF(A124>=1,DATA!L112,0) -> 0 | F124: =IF(A124>=1,DATA!M112,0) -> 0 | G124: =DATA!F112 -> 0 | H124: 0 | I124: 0
A125: =DATA!G113 -> 0 | B125: =DATA!A113 -> 0 | C125: =DATA!B113 -> 0 | D125: =IF(A125>=1,DATA!K113,0) -> 0 | E125: =IF(A125>=1,DATA!L113,0) -> 0 | F125: =IF(A125>=1,DATA!M113,0) -> 0 | G125: =DATA!F113 -> 0 | H125: 0 | I125: 0
A126: =DATA!G114 -> 0 | B126: =DATA!A114 -> 0 | C126: =DATA!B114 -> 0 | D126: =IF(A126>=1,DATA!K114,0) -> 0 | E126: =IF(A126>=1,DATA!L114,0) -> 0 | F126: =IF(A126>=1,DATA!M114,0) -> 0 | G126: =DATA!F114 -> 0 | H126: 0 | I126: 0
A127: =DATA!G115 -> 0 | B127: =DATA!A115 -> 0 | C127: =DATA!B115 -> 0 | D127: =IF(A127>=1,DATA!K115,0) -> 0 | E127: =IF(A127>=1,DATA!L115,0) -> 0 | F127: =IF(A127>=1,DATA!M115,0) -> 0 | G127: =DATA!F115 -> 0 | H127: 0 | I127: 0
A128: =DATA!G116 -> 0 | B128: =DATA!A116 -> 0 | C128: =DATA!B116 -> 0 | D128: =IF(A128>=1,DATA!K116,0) -> 0 | E128: =IF(A128>=1,DATA!L116,0) -> 0 | F128: =IF(A128>=1,DATA!M116,0) -> 0 | G128: =DATA!F116 -> 0 | H128: 0 | I128: 0
A129: =DATA!G117 -> 0 | B129: =DATA!A117 -> 0 | C129: =DATA!B117 -> 0 | D129: =IF(A129>=1,DATA!K117,0) -> 0 | E129: =IF(A129>=1,DATA!L117,0) -> 0 | F129: =IF(A129>=1,DATA!M117,0) -> 0 | G129: =DATA!F117 -> 0 | H129: 0 | I129: 0
A130: =DATA!G118 -> 0 | B130: =DATA!A118 -> 0 | C130: =DATA!B118 -> 0 | D130: =IF(A130>=1,DATA!K118,0) -> 0 | E130: =IF(A130>=1,DATA!L118,0) -> 0 | F130: =IF(A130>=1,DATA!M118,0) -> 0 | G130: =DATA!F118 -> 0 | H130: 0 | I130: 0
A131: =DATA!G119 -> 0 | B131: =DATA!A119 -> 0 | C131: =DATA!B119 -> 0 | D131: =IF(A131>=1,DATA!K119,0) -> 0 | E131: =IF(A131>=1,DATA!L119,0) -> 0 | F131: =IF(A131>=1,DATA!M119,0) -> 0 | G131: =DATA!F119 -> 0 | H131: 0 | I131: 0
A132: =DATA!G120 -> 0 | B132: =DATA!A120 -> 0 | C132: =DATA!B120 -> 0 | D132: =IF(A132>=1,DATA!K120,0) -> 0 | E132: =IF(A132>=1,DATA!L120,0) -> 0 | F132: =IF(A132>=1,DATA!M120,0) -> 0 | G132: =DATA!F120 -> 0 | H132: 0 | I132: 0
A133: =DATA!G121 -> 0 | B133: =DATA!A121 -> 0 | C133: =DATA!B121 -> 0 | D133: =IF(A133>=1,DATA!K121,0) -> 0 | E133: =IF(A133>=1,DATA!L121,0) -> 0 | F133: =IF(A133>=1,DATA!M121,0) -> 0 | G133: =DATA!F121 -> 0 | H133: 0 | I133: 0
A134: =DATA!G122 -> 0 | B134: =DATA!A122 -> 0 | C134: =DATA!B122 -> 0 | D134: =IF(A134>=1,DATA!K122,0) -> 0 | E134: =IF(A134>=1,DATA!L122,0) -> 0 | F134: =IF(A134>=1,DATA!M122,0) -> 0 | G134: =DATA!F122 -> 0 | H134: 0 | I134: 0
A135: =DATA!G123 -> 0 | B135: =DATA!A123 -> 0 | C135: =DATA!B123 -> 0 | D135: =IF(A135>=1,DATA!K123,0) -> 0 | E135: =IF(A135>=1,DATA!L123,0) -> 0 | F135: =IF(A135>=1,DATA!M123,0) -> 0 | G135: =DATA!F123 -> 0 | H135: 0 | I135: 0
A136: =DATA!G124 -> 0 | B136: =DATA!A124 -> 0 | C136: =DATA!B124 -> 0 | D136: =IF(A136>=1,DATA!K124,0) -> 0 | E136: =IF(A136>=1,DATA!L124,0) -> 0 | F136: =IF(A136>=1,DATA!M124,0) -> 0 | G136: =DATA!F124 -> 0 | H136: 0 | I136: 0
A137: =DATA!G125 -> 0 | B137: =DATA!A125 -> 0 | C137: =DATA!B125 -> 0 | D137: =IF(A137>=1,DATA!K125,0) -> 0 | E137: =IF(A137>=1,DATA!L125,0) -> 0 | F137: =IF(A137>=1,DATA!M125,0) -> 0 | G137: =DATA!F125 -> 0 | H137: 0 | I137: 0
A138: =DATA!G126 -> 0 | B138: =DATA!A126 -> 0 | C138: =DATA!B126 -> 0 | D138: =IF(A138>=1,DATA!K126,0) -> 0 | E138: =IF(A138>=1,DATA!L126,0) -> 0 | F138: =IF(A138>=1,DATA!M126,0) -> 0 | G138: =DATA!F126 -> 0 | H138: 0 | I138: 0
A139: =DATA!G127 -> 0 | B139: =DATA!A127 -> 0 | C139: =DATA!B127 -> 0 | D139: =IF(A139>=1,DATA!K127,0) -> 0 | E139: =IF(A139>=1,DATA!L127,0) -> 0 | F139: =IF(A139>=1,DATA!M127,0) -> 0 | G139: =DATA!F127 -> 0 | H139: 0 | I139: 0
A140: =DATA!G128 -> 0 | B140: =DATA!A128 -> 0 | C140: =DATA!B128 -> 0 | D140: =IF(A140>=1,DATA!K128,0) -> 0 | E140: =IF(A140>=1,DATA!L128,0) -> 0 | F140: =IF(A140>=1,DATA!M128,0) -> 0 | G140: =DATA!F128 -> 0 | H140: 0 | I140: 0
A141: =DATA!G129 -> 0 | B141: =DATA!A129 -> 0 | C141: =DATA!B129 -> 0 | D141: =IF(A141>=1,DATA!K129,0) -> 0 | E141: =IF(A141>=1,DATA!L129,0) -> 0 | F141: =IF(A141>=1,DATA!M129,0) -> 0 | G141: =DATA!F129 -> 0 | H141: 0 | I141: 0
A142: =DATA!G130 -> 0 | B142: =DATA!A130 -> 0 | C142: =DATA!B130 -> 0 | D142: =IF(A142>=1,DATA!K130,0) -> 0 | E142: =IF(A142>=1,DATA!L130,0) -> 0 | F142: =IF(A142>=1,DATA!M130,0) -> 0 | G142: =DATA!F130 -> 0 | H142: 0 | I142: 0
A143: =DATA!G131 -> 0 | B143: =DATA!A131 -> 0 | C143: =DATA!B131 -> 0 | D143: =IF(A143>=1,DATA!K131,0) -> 0 | E143: =IF(A143>=1,DATA!L131,0) -> 0 | F143: =IF(A143>=1,DATA!M131,0) -> 0 | G143: =DATA!F131 -> 0 | H143: =IF(A143>=1,A143*D143*E143*F143*0.0079/1000,0) -> 0 | I143: =PRODUCT(H143*5.2) -> 0
A144: =DATA!G132 -> 0 | B144: =DATA!A132 -> 0 | C144: =DATA!B132 -> 0 | D144: =IF(A144>=1,DATA!K132,0) -> 0 | E144: =IF(A144>=1,DATA!L132,0) -> 0 | F144: =IF(A144>=1,DATA!M132,0) -> 0 | G144: =DATA!F132 -> 0 | H144: 0 | I144: 0
A145: =DATA!G133 -> 0 | B145: =DATA!A133 -> 0 | C145: =DATA!B133 -> 0 | D145: =IF(A145>=1,DATA!K133,0) -> 0 | E145: =IF(A145>=1,DATA!L133,0) -> 0 | F145: =IF(A145>=1,DATA!M133,0) -> 0 | G145: =DATA!F133 -> 0 | H145: 0 | I145: 0
A146: =DATA!G134 -> 0 | B146: =DATA!A134 -> 0 | C146: =DATA!B134 -> 0 | D146: =IF(A146>=1,DATA!K134,0) -> 0 | E146: =IF(A146>=1,DATA!L134,0) -> 0 | F146: =IF(A146>=1,DATA!M134,0) -> 0 | G146: =DATA!F134 -> 0 | H146: 0 | I146: 0
A147: =DATA!G135 -> 0 | B147: =DATA!A135 -> 0 | C147: =DATA!B135 -> 0 | D147: =IF(A147>=1,DATA!K135,0) -> 0 | E147: =IF(A147>=1,DATA!L135,0) -> 0 | F147: =IF(A147>=1,DATA!M135,0) -> 0 | G147: =DATA!F135 -> 0 | H147: 0 | I147: 0
A148: =DATA!G136 -> 0 | B148: =DATA!A136 -> 0 | C148: =DATA!B136 -> 0 | D148: =IF(A148>=1,DATA!K136,0) -> 0 | E148: =IF(A148>=1,DATA!L136,0) -> 0 | F148: =IF(A148>=1,DATA!M136,0) -> 0 | G148: =DATA!F136 -> 0 | H148: 0 | I148: 0
A149: =DATA!G137 -> 0 | B149: =DATA!A137 -> 0 | C149: =DATA!B137 -> 0 | D149: =IF(A149>=1,DATA!K137,0) -> 0 | E149: =IF(A149>=1,DATA!L137,0) -> 0 | F149: =IF(A149>=1,DATA!M137,0) -> 0 | G149: =DATA!F137 -> 0 | H149: 0 | I149: 0
A150: =DATA!G138 -> 0 | B150: =DATA!A138 -> 0 | C150: =DATA!B138 -> 0 | D150: =IF(A150>=1,DATA!K138,0) -> 0 | E150: =IF(A150>=1,DATA!L138,0) -> 0 | F150: =IF(A150>=1,DATA!M138,0) -> 0 | G150: =DATA!F138 -> 0 | H150: 0 | I150: 0
A151: =DATA!G139 -> 0 | B151: =DATA!A139 -> 0 | C151: =DATA!B139 -> 0 | D151: =IF(A151>=1,DATA!K139,0) -> 0 | E151: =IF(A151>=1,DATA!L139,0) -> 0 | F151: =IF(A151>=1,DATA!M139,0) -> 0 | G151: =DATA!F139 -> 0 | H151: 0 | I151: 0
A152: =DATA!G140 -> 0 | B152: =DATA!A140 -> 0 | C152: =DATA!B140 -> 0 | D152: =IF(A152>=1,DATA!K140,0) -> 0 | E152: =IF(A152>=1,DATA!L140,0) -> 0 | F152: =IF(A152>=1,DATA!M140,0) -> 0 | G152: =DATA!F140 -> 0 | H152: 0 | I152: 0
A153: =DATA!G141 -> 0 | B153: =DATA!A141 -> 0 | C153: =DATA!B141 -> 0 | D153: =IF(A153>=1,DATA!K141,0) -> 0 | E153: =IF(A153>=1,DATA!L141,0) -> 0 | F153: =IF(A153>=1,DATA!M141,0) -> 0 | G153: =DATA!F141 -> 0 | H153: 0 | I153: 0
A154: =DATA!G142 -> 0 | B154: =DATA!A142 -> 0 | C154: =DATA!B142 -> 0 | D154: =IF(A154>=1,DATA!K142,0) -> 0 | E154: =IF(A154>=1,DATA!L142,0) -> 0 | F154: =IF(A154>=1,DATA!M142,0) -> 0 | G154: =DATA!F142 -> 0 | H154: 0 | I154: 0
A155: =DATA!G143 -> 0 | B155: =DATA!A143 -> 0 | C155: =DATA!B143 -> 0 | D155: =IF(A155>=1,DATA!K143,0) -> 0 | E155: =IF(A155>=1,DATA!L143,0) -> 0 | F155: =IF(A155>=1,DATA!M143,0) -> 0 | G155: =DATA!F143 -> 0 | H155: 0 | I155: 0
A156: =DATA!G144 -> 0 | B156: =DATA!A144 -> 0 | C156: =DATA!B144 -> 0 | D156: =IF(A156>=1,DATA!K144,0) -> 0 | E156: =IF(A156>=1,DATA!L144,0) -> 0 | F156: =IF(A156>=1,DATA!M144,0) -> 0 | G156: =DATA!F144 -> 0 | H156: 0 | I156: 0
A157: =DATA!G145 -> 0 | B157: =DATA!A145 -> 0 | C157: =DATA!B145 -> 0 | D157: =IF(A157>=1,DATA!K145,0) -> 0 | E157: =IF(A157>=1,DATA!L145,0) -> 0 | F157: =IF(A157>=1,DATA!M145,0) -> 0 | G157: =DATA!F145 -> 0 | H157: 0 | I157: 0
A158: =DATA!G146 -> 0 | B158: =DATA!A146 -> 0 | C158: =DATA!B146 -> 0 | D158: =IF(A158>=1,DATA!K146,0) -> 0 | E158: =IF(A158>=1,DATA!L146,0) -> 0 | F158: =IF(A158>=1,DATA!M146,0) -> 0 | G158: =DATA!F146 -> 0 | H158: 0 | I158: 0
A159: =DATA!G147 -> 0 | B159: =DATA!A147 -> 0 | C159: =DATA!B147 -> 0 | D159: =IF(A159>=1,DATA!K147,0) -> 0 | E159: =IF(A159>=1,DATA!L147,0) -> 0 | F159: =IF(A159>=1,DATA!M147,0) -> 0 | G159: =DATA!F147 -> 0 | H159: 0 | I159: 0
A160: =DATA!G148 -> 0 | B160: =DATA!A148 -> 0 | C160: =DATA!B148 -> 0 | D160: =IF(A160>=1,DATA!K148,0) -> 0 | E160: =IF(A160>=1,DATA!L148,0) -> 0 | F160: =IF(A160>=1,DATA!M148,0) -> 0 | G160: =DATA!F148 -> 0 | H160: 0 | I160: 0
A161: =DATA!G149 -> 0 | B161: =DATA!A149 -> 0 | C161: =DATA!B149 -> 0 | D161: =IF(A161>=1,DATA!K149,0) -> 0 | E161: =IF(A161>=1,DATA!L149,0) -> 0 | F161: =IF(A161>=1,DATA!M149,0) -> 0 | G161: =DATA!F149 -> 0 | H161: 0 | I161: 0
A162: =DATA!G150 -> 0 | B162: =DATA!A150 -> 0 | C162: =DATA!B150 -> 0 | D162: =IF(A162>=1,DATA!K150,0) -> 0 | E162: =IF(A162>=1,DATA!L150,0) -> 0 | F162: =IF(A162>=1,DATA!M150,0) -> 0 | G162: =DATA!F150 -> 0 | H162: 0 | I162: 0
A163: =DATA!G151 -> 0 | B163: =DATA!A151 -> 0 | C163: =DATA!B151 -> 0 | D163: =IF(A163>=1,DATA!K151,0) -> 0 | E163: =IF(A163>=1,DATA!L151,0) -> 0 | F163: =IF(A163>=1,DATA!M151,0) -> 0 | G163: =DATA!F151 -> 0 | H163: 0 | I163: 0
A164: =DATA!G152 -> 0 | B164: =DATA!A152 -> 0 | C164: =DATA!B152 -> 0 | D164: =IF(A164>=1,DATA!K152,0) -> 0 | E164: =IF(A164>=1,DATA!L152,0) -> 0 | F164: =IF(A164>=1,DATA!M152,0) -> 0 | G164: =DATA!F152 -> 0 | H164: 0 | I164: 0
A165: =DATA!G153 -> 0 | B165: =DATA!A153 -> 0 | C165: =DATA!B153 -> 0 | D165: =IF(A165>=1,DATA!K153,0) -> 0 | E165: =IF(A165>=1,DATA!L153,0) -> 0 | F165: =IF(A165>=1,DATA!M153,0) -> 0 | G165: =DATA!F153 -> 0 | H165: 0 | I165: 0
A166: =DATA!G154 -> 0 | B166: =DATA!A154 -> 0 | C166: =DATA!B154 -> 0 | D166: =IF(A166>=1,DATA!K154,0) -> 0 | E166: =IF(A166>=1,DATA!L154,0) -> 0 | F166: =IF(A166>=1,DATA!M154,0) -> 0 | G166: =DATA!F154 -> 0 | H166: 0 | I166: 0
A167: =DATA!G155 -> 0 | B167: =DATA!A155 -> 0 | C167: =DATA!B155 -> 0 | D167: =IF(A167>=1,DATA!K155,0) -> 0 | E167: =IF(A167>=1,DATA!L155,0) -> 0 | F167: =IF(A167>=1,DATA!M155,0) -> 0 | G167: =DATA!F155 -> 0 | H167: 0 | I167: 0
A168: =DATA!G156 -> 0 | B168: =DATA!A156 -> 0 | C168: =DATA!B156 -> 0 | D168: =IF(A168>=1,DATA!K156,0) -> 0 | E168: =IF(A168>=1,DATA!L156,0) -> 0 | F168: =IF(A168>=1,DATA!M156,0) -> 0 | G168: =DATA!F156 -> 0 | H168: 0 | I168: 0
A169: =DATA!G157 -> 0 | B169: =DATA!A157 -> 0 | C169: =DATA!B157 -> 0 | D169: =IF(A169>=1,DATA!K157,0) -> 0 | E169: =IF(A169>=1,DATA!L157,0) -> 0 | F169: =IF(A169>=1,DATA!M157,0) -> 0 | G169: =DATA!F157 -> 0 | H169: 0 | I169: 0
A170: =DATA!G158 -> 0 | B170: =DATA!A158 -> 0 | C170: =DATA!B158 -> 0 | D170: =IF(A170>=1,DATA!K158,0) -> 0 | E170: =IF(A170>=1,DATA!L158,0) -> 0 | F170: =IF(A170>=1,DATA!M158,0) -> 0 | G170: =DATA!F158 -> 0 | H170: 0 | I170: 0
A171: =DATA!G159 -> 0 | B171: =DATA!A159 -> 0 | C171: =DATA!B159 -> 0 | D171: =IF(A171>=1,DATA!K159,0) -> 0 | E171: =IF(A171>=1,DATA!L159,0) -> 0 | F171: =IF(A171>=1,DATA!M159,0) -> 0 | G171: =DATA!F159 -> 0 | H171: 0 | I171: 0
A172: =DATA!G160 -> 0 | B172: =DATA!A160 -> 0 | C172: =DATA!B160 -> 0 | D172: =IF(A172>=1,DATA!K160,0) -> 0 | E172: =IF(A172>=1,DATA!L160,0) -> 0 | F172: =IF(A172>=1,DATA!M160,0) -> 0 | G172: =DATA!F160 -> 0 | H172: 0 | I172: 0
A173: =DATA!G161 -> 0 | B173: =DATA!A161 -> 0 | C173: =DATA!B161 -> 0 | D173: =IF(A173>=1,DATA!K161,0) -> 0 | E173: =IF(A173>=1,DATA!L161,0) -> 0 | F173: =IF(A173>=1,DATA!M161,0) -> 0 | G173: =DATA!F161 -> 0 | H173: 0 | I173: 0
A174: =DATA!G162 -> 0 | B174: =DATA!A162 -> 0 | C174: =DATA!B162 -> 0 | D174: =IF(A174>=1,DATA!K162,0) -> 0 | E174: =IF(A174>=1,DATA!L162,0) -> 0 | F174: =IF(A174>=1,DATA!M162,0) -> 0 | G174: =DATA!F162 -> 0 | H174: 0 | I174: 0
A175: =DATA!G163 -> 0 | B175: =DATA!A163 -> 0 | C175: =DATA!B163 -> 0 | D175: =IF(A175>=1,DATA!K163,0) -> 0 | E175: =IF(A175>=1,DATA!L163,0) -> 0 | F175: =IF(A175>=1,DATA!M163,0) -> 0 | G175: =DATA!F163 -> 0 | H175: 0 | I175: 0
A176: =DATA!G164 -> 0 | B176: =DATA!A164 -> 0 | C176: =DATA!B164 -> 0 | D176: =IF(A176>=1,DATA!K164,0) -> 0 | E176: =IF(A176>=1,DATA!L164,0) -> 0 | F176: =IF(A176>=1,DATA!M164,0) -> 0 | G176: =DATA!F164 -> 0 | H176: 0 | I176: 0
A177: =DATA!G165 -> 0 | B177: =DATA!A165 -> 0 | C177: =DATA!B165 -> 0 | D177: =IF(A177>=1,DATA!K165,0) -> 0 | E177: =IF(A177>=1,DATA!L165,0) -> 0 | F177: =IF(A177>=1,DATA!M165,0) -> 0 | G177: =DATA!F165 -> 0 | H177: 0 | I177: 0
A178: =DATA!G166 -> 0 | B178: =DATA!A166 -> 0 | C178: =DATA!B166 -> 0 | D178: =IF(A178>=1,DATA!K166,0) -> 0 | E178: =IF(A178>=1,DATA!L166,0) -> 0 | F178: =IF(A178>=1,DATA!M166,0) -> 0 | G178: =DATA!F166 -> 0 | H178: 0 | I178: 0
A179: =DATA!G167 -> 0 | B179: =DATA!A167 -> 0 | C179: =DATA!B167 -> 0 | D179: =IF(A179>=1,DATA!K167,0) -> 0 | E179: =IF(A179>=1,DATA!L167,0) -> 0 | F179: =IF(A179>=1,DATA!M167,0) -> 0 | G179: =DATA!F167 -> 0 | H179: 0 | I179: 0
A180: =DATA!G168 -> 0 | B180: =DATA!A168 -> 0 | C180: =DATA!B168 -> 0 | D180: =IF(A180>=1,DATA!K168,0) -> 0 | E180: =IF(A180>=1,DATA!L168,0) -> 0 | F180: =IF(A180>=1,DATA!M168,0) -> 0 | G180: =DATA!F168 -> 0 | H180: 0 | I180: 0
A181: =DATA!G169 -> 0 | B181: =DATA!A169 -> 0 | C181: =DATA!B169 -> 0 | D181: =IF(A181>=1,DATA!K169,0) -> 0 | E181: =IF(A181>=1,DATA!L169,0) -> 0 | F181: =IF(A181>=1,DATA!M169,0) -> 0 | G181: =DATA!F169 -> 0 | H181: 0 | I181: 0
A182: =DATA!G170 -> 0 | B182: =DATA!A170 -> 0 | C182: =DATA!B170 -> 0 | D182: =IF(A182>=1,DATA!K170,0) -> 0 | E182: =IF(A182>=1,DATA!L170,0) -> 0 | F182: =IF(A182>=1,DATA!M170,0) -> 0 | G182: =DATA!F170 -> 0 | H182: 0 | I182: 0
A183: =DATA!G171 -> 0 | B183: =DATA!A171 -> 0 | C183: =DATA!B171 -> 0 | D183: =IF(A183>=1,DATA!K171,0) -> 0 | E183: =IF(A183>=1,DATA!L171,0) -> 0 | F183: =IF(A183>=1,DATA!M171,0) -> 0 | G183: =DATA!F171 -> 0 | H183: 0 | I183: 0
A184: =DATA!G172 -> 0 | B184: =DATA!A172 -> 0 | C184: =DATA!B172 -> 0 | D184: =IF(A184>=1,DATA!K172,0) -> 0 | E184: =IF(A184>=1,DATA!L172,0) -> 0 | F184: =IF(A184>=1,DATA!M172,0) -> 0 | G184: =DATA!F172 -> 0 | H184: 0 | I184: 0
A185: =DATA!G173 -> 0 | B185: =DATA!A173 -> 0 | C185: =DATA!B173 -> 0 | D185: =IF(A185>=1,DATA!K173,0) -> 0 | E185: =IF(A185>=1,DATA!L173,0) -> 0 | F185: =IF(A185>=1,DATA!M173,0) -> 0 | G185: =DATA!F173 -> 0 | H185: 0 | I185: 0
A186: =DATA!G174 -> 0 | B186: =DATA!A174 -> 0 | C186: =DATA!B174 -> 0 | D186: =IF(A186>=1,DATA!K174,0) -> 0 | E186: =IF(A186>=1,DATA!L174,0) -> 0 | F186: =IF(A186>=1,DATA!M174,0) -> 0 | G186: =DATA!F174 -> 0 | H186: 0 | I186: 0
A187: =DATA!G175 -> 0 | B187: =DATA!A175 -> 0 | C187: =DATA!B175 -> 0 | D187: =IF(A187>=1,DATA!K175,0) -> 0 | E187: =IF(A187>=1,DATA!L175,0) -> 0 | F187: =IF(A187>=1,DATA!M175,0) -> 0 | G187: =DATA!F175 -> 0 | H187: 0 | I187: 0
A188: =DATA!G176 -> 0 | B188: =DATA!A176 -> 0 | C188: =DATA!B176 -> 0 | D188: =IF(A188>=1,DATA!K176,0) -> 0 | E188: =IF(A188>=1,DATA!L176,0) -> 0 | F188: =IF(A188>=1,DATA!M176,0) -> 0 | G188: =DATA!F176 -> 0 | H188: 0 | I188: 0
A189: =DATA!G177 -> 0 | B189: =DATA!A177 -> 0 | C189: =DATA!B177 -> 0 | D189: =IF(A189>=1,DATA!K177,0) -> 0 | E189: =IF(A189>=1,DATA!L177,0) -> 0 | F189: =IF(A189>=1,DATA!M177,0) -> 0 | G189: =DATA!F177 -> 0 | H189: 0 | I189: 0
A190: =DATA!G178 -> 0 | B190: =DATA!A178 -> 0 | C190: =DATA!B178 -> 0 | D190: =IF(A190>=1,DATA!K178,0) -> 0 | E190: =IF(A190>=1,DATA!L178,0) -> 0 | F190: =IF(A190>=1,DATA!M178,0) -> 0 | G190: =DATA!F178 -> 0 | H190: 0 | I190: 0
A191: =DATA!G179 -> 0 | B191: =DATA!A179 -> 0 | C191: =DATA!B179 -> 0 | D191: =IF(A191>=1,DATA!K179,0) -> 0 | E191: =IF(A191>=1,DATA!L179,0) -> 0 | F191: =IF(A191>=1,DATA!M179,0) -> 0 | G191: =DATA!F179 -> 0 | H191: 0 | I191: 0
A192: =DATA!G180 -> 0 | B192: =DATA!A180 -> 0 | C192: =DATA!B180 -> 0 | D192: =IF(A192>=1,DATA!K180,0) -> 0 | E192: =IF(A192>=1,DATA!L180,0) -> 0 | F192: =IF(A192>=1,DATA!M180,0) -> 0 | G192: =DATA!F180 -> 0 | H192: 0 | I192: 0
A193: =DATA!G181 -> 0 | B193: =DATA!A181 -> 0 | C193: =DATA!B181 -> 0 | D193: =IF(A193>=1,DATA!K181,0) -> 0 | E193: =IF(A193>=1,DATA!L181,0) -> 0 | F193: =IF(A193>=1,DATA!M181,0) -> 0 | G193: =DATA!F181 -> 0 | H193: 0 | I193: 0
A194: =DATA!G182 -> 0 | B194: =DATA!A182 -> 0 | C194: =DATA!B182 -> 0 | D194: =IF(A194>=1,DATA!K182,0) -> 0 | E194: =IF(A194>=1,DATA!L182,0) -> 0 | F194: =IF(A194>=1,DATA!M182,0) -> 0 | G194: =DATA!F182 -> 0 | H194: 0 | I194: 0
A195: =DATA!G183 -> 0 | B195: =DATA!A183 -> 0 | C195: =DATA!B183 -> 0 | D195: =IF(A195>=1,DATA!K183,0) -> 0 | E195: =IF(A195>=1,DATA!L183,0) -> 0 | F195: =IF(A195>=1,DATA!M183,0) -> 0 | G195: =DATA!F183 -> 0 | H195: 0 | I195: 0
A196: =DATA!G184 -> 0 | B196: =DATA!A184 -> 0 | C196: =DATA!B184 -> 0 | D196: =IF(A196>=1,DATA!K184,0) -> 0 | E196: =IF(A196>=1,DATA!L184,0) -> 0 | F196: =IF(A196>=1,DATA!M184,0) -> 0 | G196: =DATA!F184 -> 0 | H196: 0 | I196: 0
A197: =DATA!G185 -> 0 | B197: =DATA!A185 -> 0 | C197: =DATA!B185 -> 0 | D197: =IF(A197>=1,DATA!K185,0) -> 0 | E197: =IF(A197>=1,DATA!L185,0) -> 0 | F197: =IF(A197>=1,DATA!M185,0) -> 0 | G197: =DATA!F185 -> 0 | H197: 0 | I197: 0
A198: =DATA!G186 -> 0 | B198: =DATA!A186 -> 0 | C198: =DATA!B186 -> 0 | D198: =IF(A198>=1,DATA!K186,0) -> 0 | E198: =IF(A198>=1,DATA!L186,0) -> 0 | F198: =IF(A198>=1,DATA!M186,0) -> 0 | G198: =DATA!F186 -> 0 | H198: 0 | I198: 0
A199: =DATA!G187 -> 0 | B199: =DATA!A187 -> 0 | C199: =DATA!B187 -> 0 | D199: =IF(A199>=1,DATA!K187,0) -> 0 | E199: =IF(A199>=1,DATA!L187,0) -> 0 | F199: =IF(A199>=1,DATA!M187,0) -> 0 | G199: =DATA!F187 -> 0 | H199: 0 | I199: 0
A200: =DATA!G188 -> 0 | B200: =DATA!A188 -> 0 | C200: =DATA!B188 -> 0 | D200: =IF(A200>=1,DATA!K188,0) -> 0 | E200: =IF(A200>=1,DATA!L188,0) -> 0 | F200: =IF(A200>=1,DATA!M188,0) -> 0 | G200: =DATA!F188 -> 0 | H200: 0 | I200: 0
A201: =DATA!G189 -> 0 | B201: =DATA!A189 -> 0 | C201: =DATA!B189 -> 0 | D201: =IF(A201>=1,DATA!K189,0) -> 0 | E201: =IF(A201>=1,DATA!L189,0) -> 0 | F201: =IF(A201>=1,DATA!M189,0) -> 0 | G201: =DATA!F189 -> 0 | H201: 0 | I201: 0
A202: =DATA!G190 -> 0 | B202: =DATA!A190 -> 0 | C202: =DATA!B190 -> 0 | D202: =IF(A202>=1,DATA!K190,0) -> 0 | E202: =IF(A202>=1,DATA!L190,0) -> 0 | F202: =IF(A202>=1,DATA!M190,0) -> 0 | G202: =DATA!F190 -> 0 | H202: 0 | I202: 0
A203: =DATA!G191 -> 0 | B203: =DATA!A191 -> 0 | C203: =DATA!B191 -> 0 | D203: =IF(A203>=1,DATA!K191,0) -> 0 | E203: =IF(A203>=1,DATA!L191,0) -> 0 | F203: =IF(A203>=1,DATA!M191,0) -> 0 | G203: =DATA!F191 -> 0 | H203: 0 | I203: 0
A204: =DATA!G192 -> 0 | B204: =DATA!A192 -> 0 | C204: =DATA!B192 -> 0 | D204: =IF(A204>=1,DATA!K192,0) -> 0 | E204: =IF(A204>=1,DATA!L192,0) -> 0 | F204: =IF(A204>=1,DATA!M192,0) -> 0 | G204: =DATA!F192 -> 0 | H204: 0 | I204: 0
A205: =DATA!G193 -> 0 | B205: =DATA!A193 -> 0 | C205: =DATA!B193 -> 0 | D205: =IF(A205>=1,DATA!K193,0) -> 0 | E205: =IF(A205>=1,DATA!L193,0) -> 0 | F205: =IF(A205>=1,DATA!M193,0) -> 0 | G205: =DATA!F193 -> 0 | H205: 0 | I205: 0
A206: =DATA!G194 -> 0 | B206: =DATA!A194 -> 0 | C206: =DATA!B194 -> 0 | D206: =IF(A206>=1,DATA!K194,0) -> 0 | E206: =IF(A206>=1,DATA!L194,0) -> 0 | F206: =IF(A206>=1,DATA!M194,0) -> 0 | G206: =DATA!F194 -> 0 | H206: 0 | I206: 0
A207: =DATA!G195 -> 0 | B207: =DATA!A195 -> 0 | C207: =DATA!B195 -> 0 | D207: =IF(A207>=1,DATA!K195,0) -> 0 | E207: =IF(A207>=1,DATA!L195,0) -> 0 | F207: =IF(A207>=1,DATA!M195,0) -> 0 | G207: =DATA!F195 -> 0 | H207: =IF(A207>=1,A207*D207*E207*F207*0.0079/1000,0) -> 0 | I207: =PRODUCT(H207*5.2) -> 0
A208: =DATA!G196 -> 0 | B208: =DATA!A196 -> 0 | C208: =DATA!B196 -> 0 | D208: =IF(A208>=1,DATA!K196,0) -> 0 | E208: =IF(A208>=1,DATA!L196,0) -> 0 | F208: =IF(A208>=1,DATA!M196,0) -> 0 | G208: =DATA!F196 -> 0 | H208: 0 | I208: 0
A209: =DATA!G197 -> 0 | B209: =DATA!A197 -> 0 | C209: =DATA!B197 -> 0 | D209: =IF(A209>=1,DATA!K197,0) -> 0 | E209: =IF(A209>=1,DATA!L197,0) -> 0 | F209: =IF(A209>=1,DATA!M197,0) -> 0 | G209: =DATA!F197 -> 0 | H209: 0 | I209: 0
A210: =DATA!G198 -> 0 | B210: =DATA!A198 -> 0 | C210: =DATA!B198 -> 0 | D210: =IF(A210>=1,DATA!K198,0) -> 0 | E210: =IF(A210>=1,DATA!L198,0) -> 0 | F210: =IF(A210>=1,DATA!M198,0) -> 0 | G210: =DATA!F198 -> 0 | H210: 0 | I210: 0
A211: =DATA!G199 -> 0 | B211: =DATA!A199 -> 0 | C211: =DATA!B199 -> 0 | D211: =IF(A211>=1,DATA!K199,0) -> 0 | E211: =IF(A211>=1,DATA!L199,0) -> 0 | F211: =IF(A211>=1,DATA!M199,0) -> 0 | G211: =DATA!F199 -> 0 | H211: 0 | I211: 0
... 489 more rows

Sheet DATA
A1: 1797_10_AF_02_2 | B1: Düsenteil | C1: 139,54857566 | D1: 680 | E1: 1,50000000 | F1: 1.4301 2J EF | G1: 1 | H1: =SUBSTITUTE(C1,".",",") -> 139,54857566 | I1: =SUBSTITUTE(D1,".",",") -> 680 | J1: =SUBSTITUTE(E1,".",",") -> 1,50000000 | K1: =ROUND(H1,1) -> 139.5 | L1: 680 | M1: 1.5
A2: 1797_00_TR_03 | B2: Revision mit Auslass | C2: 493,88855050 | D2: 1469,98473401 | E2: 1,50000000 | F2: 1.4301 2J EF | G2: 1 | H2: =SUBSTITUTE(C2,".",",") -> 493,88855050 | I2: =SUBSTITUTE(D2,".",",") -> 1469,98473401 | J2: =SUBSTITUTE(E2,".",",") -> 1,50000000 | K2: 493.9 | L2: 1470 | M2: 1.5
A3: 1797_SD_00_01 | B3: Schalldäpfer | C3: 1289,98473401 | D3: 517,98473401 | E3: 1.5 | F3: 1.4301 2J EF | G3: 2 | H3: =SUBSTITUTE(C3,".",",") -> 1289,98473401 | I3: 517,98473401 | J3: =SUBSTITUTE(E3,".",",") -> 1,5 | K3: =ROUND(H3,1) -> 1290 | L3: =ROUND(I3,1) -> 518 | M3: =ROUND(J3,1) -> 1.5
A4: 1797_SD_00_02 | B4: Schalldäpfer | C4: 1289,98473401 | D4: 517,98473401 | E4: 1.5 | F4: 1.4301 2J EF | G4: 1 | H4: 1289,98473401 | I4: 517,98473401 | J4: 1,5 | K4: 1290 | L4: 518 | M4: 1.5
A5: 1797_20_PA_01_06 | B5: Außenblech oben | C5: 1422,56061704 | D5: 1455,99480453 | E5: 1 | F5: 1.4301 2J EF | G5: 1 | H5: 1422,56061704 | I5: 1455,99480453 | J5: 1 | K5: 1422.6 | L5: 1456 | M5: 1
A6: 1797_20_PA_01_08 | B6: Innenblech oben | C6: 1450,99236700 | D6: 1400,99236700 | E6: 1.5 | F6: 1.4301 2J EF | G6: 1 | H6: 1450,99236700 | I6: 1400,99236700 | J6: 1,5 | K6: 1451 | L6: 1401 | M6: 1.5
A7: 1797_00_GF01_01 | B7: Griffschutz | C7: 1160,98473401 | D7: 403,99236700 | E7: 1,50000000 | F7: 1.4301 2J EF | G7: 1 | H7: 1160,98473401 | I7: 403,99236700 | J7: 1,50000000 | K7: 1161 | L7: 404 | M7: 1.5
A8: 1797_00_RW_07 | B8: Abluftblech | C8: 1357,99236700 | D8: 547,99236700 | E8: 1.5 | F8: 1.4301 2J EF | G8: 1 | H8: 1357,99236700 | I8: 547,99236700 | J8: 1,5 | K8: 1358 | L8: 548 | M8: 1.5
A9: 1797_00_RW01_13 | B9: Kabelkanal | C9: 2374,49618350 | D9: 670,98855050 | E9: 1.5 | F9: 1.4301 2J EF | G9: 1 | H9: 2374,49618350 | I9: 670,98855050 | J9: 1,5 | K9: 2374.5 | L9: 671 | M9: 1.5
A10: 1797_00_RW_05_01 | B10: Rückwandsegment mit Hutze | C10: 1058,98855050 | D10: 1365,98473401 | E10: 1,50000000 | F10: 1.4301 2J EF | G10: 1 | H10: 1058,98855050 | I10: 1365,98473401 | J10: 1,50000000 | K10: 1059 | L10: 1366 | M10: 1.5
A11: 1797_00_RW_05_02 | B11: Schieber | C11: 1234 | D11: 121 | E11: 1,5 | F11: 1.4301 2J EF | G11: 1 | H11: 1234 | I11: 121 | J11: 1,5 | K11: 1234 | L11: 121 | M11: 1.5
A12: 1797_00_RW_03_1 | B12: Revisionsblende | C12: 642,98855050 | D12: 747,98473401 | E12: 1,50000000 | F12: 1.4301 2J EF | G12: 1 | H12: 642,98855050 | I12: 747,98473401 | J12: 1,50000000 | K12: 643 | L12: 748 | M12: 1.5
A13: 1797_00_RW_03 | B13: Filterblech Vorne | C13: 701,00326913 | D13: 1316 | E13: 1.5 | F13: 1.4301 2J EF | G13: 1 | H13: 701,00326913 | I13: 1316 | J13: 1,5 | K13: 701 | L13: 1316 | M13: 1.5
A14: 1797_HB_04 | B14: Druckkammer Vorne | C14: 1414 | D14: 391,48855050 | E14: 1,50000000 | F14: 1.4301 2J EF | G14: 1 | H14: 1414 | I14: 391,48855050 | J14: 1,50000000 | K14: 1414 | L14: 391.5 | M14: 1.5
A15: 1797_HB_01 | B15: Düsenblech | C15: 1418 | D15: 1284,63180787 | E15: 1,50000000 | F15: 1.4301 2J EF | G15: 1 | H15: 1418 | I15: 1284,63180787 | J15: 1,50000000 | K15: 1418 | L15: 1284.6 | M15: 1.5
A16: 1797_00_EJ02_02 | B16: Tür-Ejektordüsenteil | C16: 878,64857566 | D16: 722,99236700 | E16: 1,5 | F16: 1.4301 2J EF | G16: 1 | H16: 878,64857566 | I16: 722,99236700 | J16: 1,5 | K16: 878.6 | L16: 723 | M16: 1.5
A17: 1797_00_EJ02_01 | B17: Tür-Ejektoroberteil | C17: 896,7 | D17: 768 | E17: 1,5 | F17: 1.4301 2J EF | G17: 1 | H17: 896,7 | I17: 768 | J17: 1,5 | K17: 896.7 | L17: 768 | M17: 1.5
I66: =SUBSTITUTE(D66,".",",") -> 
H67: =SUBSTITUTE(C67,".",",") ->  | J67: =SUBSTITUTE(E67,".",",") -> 
I130: =SUBSTITUTE(D130,".",",") -> 
H131: =SUBSTITUTE(C131,".",",") ->  | J131: =SUBSTITUTE(E131,".",",") -> 
I194: =SUBSTITUTE(D194,".",",") -> 
H195: =SUBSTITUTE(C195,".",",") ->  | J195: =SUBSTITUTE(E195,".",",") -> 
I258: =SUBSTITUTE(D258,".",",") -> 
H259: =SUBSTITUTE(C259,".",",") ->  | J259: =SUBSTITUTE(E259,".",",") -> 
I322: =SUBSTITUTE(D322,".",",") -> 
H323: =SUBSTITUTE(C323,".",",") ->  | J323: =SUBSTITUTE(E323,".",",") -> 
I386: =SUBSTITUTE(D386,".",",") -> 
H387: =SUBSTITUTE(C387,".",",") ->  | J387: =SUBSTITUTE(E387,".",",") -> 
I450: =SUBSTITUTE(D450,".",",") -> 
H451: =SUBSTITUTE(C451,".",",") ->  | J451: =SUBSTITUTE(E451,".",",") -> 
I514: =SUBSTITUTE(D514,".",",") -> 
H515: =SUBSTITUTE(C515,".",",") ->  | J515: =SUBSTITUTE(E515,".",",") -> 
I578: =SUBSTITUTE(D578,".",",") -> 
H579: =SUBSTITUTE(C579,".",",") ->  | J579: =SUBSTITUTE(E579,".",",") -> 
I642: =SUBSTITUTE(D642,".",",") -> 
H643: =SUBSTITUTE(C643,".",",") ->  | J643: =SUBSTITUTE(E643,".",",") -> 
